bitfinex-derivatives/quotes_BNBF0:USTF0_20250401
["timestamp","ask_amount","ask_price","bid_price","bid_amount"]
[1743474440466,0.32905019,607.81,606.04,0.33001122]
[1743474440764,0.28670528,607.47,606.04,0.33001122]
[1743474440965,2.50726975,607.8,606.04,0.33001122]
[1743474441164,0.30269653,607.79,606.04,0.33001122]
[1743474441365,0.28670528,607.46,606.04,0.33001122]
[1743474441565,2.50726975,607.8,606.04,0.33001122]
[1743474441759,0.30269407,607.79,606.04,0.33001122]
[1743474441958,0.28669819,607.45,606.04,0.33001122]
[1743474442161,2.50726975,607.79,606.04,0.33001122]
[1743474442363,0.30269712,607.78,606.04,0.33001122]
[1743474442558,0.28669701,607.44,606.04,0.33001122]
[1743474442763,2.50726975,607.79,606.04,0.33001122]
[1743474442966,0.30269134,607.78,606.04,0.33001122]
[1743474443166,0.28669819,607.43,606.04,0.33001122]
[1743474443467,2.50726975,607.79,606.04,0.33001122]
[1743474443663,0.28669819,607.42,606.04,0.33001122]
[1743474444068,0.32905019,607.81,606.04,0.33001122]
[1743474444265,0.28669701,607.41,606.04,0.33001122]
[1743474444661,0.32905019,607.81,606.04,0.33001122]
[1743474444862,0.28670528,607.4,606.04,0.33001122]
[1743474445369,0.32905019,607.81,606.04,0.33001122]
[1743474445567,0.28670528,607.39,606.04,0.33001122]
[1743474445768,0.32905019,607.81,606.04,0.33001122]
[1743474445968,0.30268966,607.8,606.04,0.33001122]
[1743474446166,0.28670646,607.38,606.04,0.33001122]
[1743474446566,0.32905019,607.81,606.04,0.33001122]
[1743474446766,0.2867041,607.37,606.04,0.33001122]
[1743474447264,0.32905019,607.81,606.04,0.33001122]
[1743474447469,0.28670882,607.36,606.04,0.33001122]
[1743474447669,0.32905019,607.81,606.04,0.33001122]
[1743474447868,0.30269052,607.8,606.04,0.33001122]
[1743474448068,0.28671,607.35,606.04,0.33001122]
[1743474448368,0.32905019,607.81,606.04,0.33001122]
[1743474448569,0.28671,607.34,606.04,0.33001122]
[1743474448869,0.32905019,607.81,606.04,0.33001122]
[1743474449068,0.30269019,607.8,606.04,0.33001122]
[1743474449269,0.28671,607.33,606.04,0.33001122]
[1743474449570,0.32905019,607.81,606.04,0.33001122]
[1743474449771,0.28670882,607.32,606.04,0.33001122]
[1743474450172,0.32905019,607.81,606.04,0.33001122]
[1743474450373,0.28671709,607.31,606.04,0.33001122]
[1743474450868,0.32905019,607.81,606.04,0.33001122]
[1743474451070,0.28671827,607.3,606.04,0.33001122]
[1743474451471,0.32905019,607.81,606.04,0.33001122]
[1743474451666,0.28671827,607.29,606.04,0.33001122]
[1743474451866,0.32905019,607.81,606.04,0.33001122]
[1743474452267,0.28671827,607.28,606.04,0.33001122]
[1743474452464,0.32905019,607.81,606.04,0.33001122]
[1743474452666,0.30268993,607.8,606.04,0.33001122]
[1743474452866,0.28671709,607.27,606.04,0.33001122]
[1743474453067,0.32905019,607.81,606.04,0.33001122]
[1743474453268,0.30269019,607.8,606.04,0.33001122]
[1743474453470,0.28672181,607.26,606.04,0.33001122]
[1743474453669,0.32905019,607.81,606.04,0.33001122]
[1743474453875,0.30269693,607.8,606.04,0.33001122]
[1743474454172,0.28672063,607.25,606.04,0.33001122]
[1743474454372,0.32905019,607.81,606.04,0.33001122]
[1743474454574,0.28670646,607.79,606.04,0.33001122]
[1743474454769,0.30269693,607.78,606.04,0.33001122]
[1743474455375,0.30269702,607.77,606.04,0.33001122]
[1743474455573,0.30269702,607.76,606.04,0.33001122]
[1743474455872,0.30269702,607.75,606.04,0.33001122]
[1743474456069,0.30269702,607.74,606.04,0.33001122]
[1743474456276,0.30269702,607.73,606.04,0.33001122]
[1743474456469,0.30269702,607.72,606.04,0.33001122]
[1743474456673,0.30269702,607.78,606.04,0.33001122]
[1743474456974,0.30269702,607.77,606.04,0.33001122]
[1743474457170,0.30269702,607.78,606.04,0.33001122]
[1743474457371,0.30269702,607.77,606.04,0.33001122]
[1743474457575,0.30269702,607.76,606.04,0.33001122]
[1743474457768,0.30269702,607.78,606.04,0.33001122]
[1743474457967,0.30269702,607.77,606.04,0.33001122]
[1743474458171,0.30269702,607.78,606.04,0.33001122]
[1743474458374,0.30269702,607.77,606.04,0.33001122]
[1743474458674,0.30269702,607.76,606.04,0.33001122]
[1743474458871,0.30269702,607.78,606.04,0.33001122]
[1743474459074,0.30269702,607.77,606.04,0.33001122]
[1743474459376,0.30269702,607.76,606.04,0.33001122]
[1743474459577,0.30269702,607.75,606.04,0.33001122]
[1743474459773,0.30269702,607.74,606.04,0.33001122]
[1743474459975,0.30269532,607.73,606.04,0.33001122]
[1743474460175,0.30269532,607.72,606.04,0.33001122]
[1743474460377,0.30269532,607.71,606.04,0.33001122]
[1743474460572,0.30269532,607.7,606.04,0.33001122]
[1743474460777,2.50726975,607.77,606.04,0.33001122]
[1743474460970,0.30269532,607.76,606.04,0.33001122]
[1743474461174,0.28670882,607.69,606.04,0.33001122]
[1743474461372,0.30269532,607.68,606.04,0.33001122]
[1743474461577,0.30269534,607.67,606.04,0.33001122]
[1743474461778,0.30269534,607.68,606.04,0.33001122]
[1743474461971,0.30269534,607.67,606.04,0.33001122]
[1743474462173,0.30269534,607.66,606.04,0.33001122]
[1743474462375,0.30269534,607.65,606.04,0.33001122]
[1743474462575,0.30269534,607.64,606.04,0.33001122]
[1743474462773,0.30269534,607.63,606.04,0.33001122]
[1743474463076,0.30269534,607.68,606.04,0.33001122]
[1743474463278,0.30269534,607.67,606.04,0.33001122]
[1743474463479,0.30269534,607.68,606.04,0.33001122]
[1743474463675,0.30269534,607.67,606.04,0.33001122]
[1743474463874,0.30269534,607.66,606.04,0.33001122]
[1743474464075,0.30269534,607.78,606.04,0.33001122]
[1743474464379,0.28671591,607.66,606.04,0.33001122]
[1743474464580,0.30269534,607.65,606.04,0.33001122]
[1743474464775,0.30269534,607.8,606.04,0.33001122]
[1743474465083,0.2867041,607.65,606.04,0.33001122]
[1743474465280,0.30269534,607.64,606.04,0.33001122]
[1743474465482,0.28670174,607.64,606.04,0.33001122]
[1743474465785,0.30269534,607.63,606.04,0.33001122]
[1743474468077,0.28670174,607.64,606.04,0.33001122]
[1743474468586,0.30272966,607.63,606.04,0.33001122]
[1743474470086,0.30272966,607.62,606.04,0.33001122]
[1743474470287,0.30272966,607.61,606.04,0.33001122]
[1743474472589,0.28676198,607.62,606.04,0.33001122]
[1743474472783,0.30274269,607.61,606.04,0.33001122]
[1743474475996,0.30274269,607.6,606.04,0.33001122]
[1743474476197,0.30274269,607.59,606.04,0.33001122]
[1743474477393,0.28679861,607.6,606.04,0.33001122]
[1743474477394,0.30274083,607.58,606.04,0.33001122]
[1743474477593,0.30274083,607.57,606.04,0.33001122]
[1743474477899,0.30274083,607.56,606.04,0.33001122]
[1743474478101,0.30274083,607.55,606.04,0.33001122]
[1743474478399,0.30274083,607.54,606.04,0.33001122]
[1743474478601,0.30274083,607.53,606.04,0.33001122]
[1743474478900,0.30274083,607.52,606.04,0.33001122]
[1743474479198,0.30273951,607.51,606.04,0.33001122]
[1743474479592,0.28679625,607.52,606.04,0.33001122]
[1743474487801,0.32905019,607.81,606.04,0.33001122]
[1743474488006,0.30272607,607.8,606.04,0.33001122]
[1743474488206,0.28674898,607.51,606.04,0.33001122]
[1743474488402,0.32905019,607.81,606.04,0.33001122]
[1743474488604,0.30272566,607.8,606.04,0.33001122]
[1743474488808,0.28675607,607.5,606.04,0.33001122]
[1743474489008,0.32905019,607.81,606.04,0.33001122]
[1743474489209,0.30272566,607.8,606.04,0.33001122]
[1743474489409,0.28675607,607.49,606.04,0.33001122]
[1743474489609,0.32905019,607.81,606.04,0.33001122]
[1743474489804,0.30272592,607.8,606.04,0.33001122]
[1743474490007,0.28675489,607.48,606.04,0.33001122]
[1743474490206,0.32905019,607.81,606.04,0.33001122]
[1743474490414,0.28675489,607.47,606.04,0.33001122]
[1743474490810,0.32905019,607.81,606.04,0.33001122]
[1743474491010,0.30272619,607.8,606.04,0.33001122]
[1743474491306,0.28675135,607.46,606.04,0.33001122]
[1743474491511,0.32905019,607.81,606.04,0.33001122]
[1743474491712,0.28675135,607.79,606.04,0.33001122]
[1743474492012,0.30272549,607.78,606.04,0.33001122]
[1743474492606,0.30272408,607.77,606.04,0.33001122]
[1743474492809,0.30272408,607.76,606.04,0.33001122]
[1743474493111,0.30272408,607.75,606.04,0.33001122]
[1743474493307,0.30272408,607.74,606.04,0.33001122]
[1743474493607,0.30272408,607.73,606.04,0.33001122]
[1743474493809,0.30272408,607.78,606.04,0.33001122]
[1743474494009,0.30272408,607.77,606.04,0.33001122]
[1743474494212,0.28675371,607.72,606.04,0.33001122]
[1743474494412,0.30272408,607.71,606.04,0.33001122]
[1743474497216,0.28675371,607.72,606.04,0.33001122]
[1743474497418,0.3027236,607.71,606.04,0.33001122]
[1743474498818,0.28675371,607.72,606.04,0.33001122]
[1743474499119,0.30275697,607.71,606.04,0.33001122]
[1743474500621,0.3027527,607.7,606.04,0.33001122]
[1743474500816,0.3027527,607.71,606.04,0.33001122]
[1743474501021,0.28675371,607.72,606.04,0.33001122]
[1743474501022,0.3027527,607.7,606.04,0.33001122]
[1743474501216,0.3027527,607.69,606.04,0.33001122]
[1743474501420,0.3027527,607.68,606.04,0.33001122]
[1743474501620,0.3027527,607.71,606.04,0.33001122]
[1743474501821,0.3027527,607.7,606.04,0.33001122]
[1743474502021,0.28675371,607.72,606.04,0.33001122]
[1743474502224,0.3027427,607.71,606.04,0.33001122]
[1743474505125,2.79402346,607.72,606.04,0.33001122]
[1743474505327,0.30275275,607.71,606.04,0.33001122]
[1743474506225,0.28675016,607.7,606.04,0.33001122]
[1743474506525,0.30275275,607.69,606.04,0.33001122]
[1743474508324,0.28675016,607.7,606.04,0.33001122]
[1743474508530,0.30275222,607.69,606.04,0.33001122]
[1743474509125,0.58951184,607.68,606.04,0.33001122]
[1743474509324,0.30275222,607.67,606.04,0.33001122]
[1743474512133,0.58951774,607.66,606.04,0.33001122]
[1743474512326,0.30275222,607.65,606.04,0.33001122]
[1743474515128,0.28676434,607.64,606.04,0.33001122]
[1743474515328,0.30275222,607.63,606.04,0.33001122]
[1743474518235,0.30275222,607.62,606.04,0.33001122]
[1743474518435,0.30275222,607.61,606.04,0.33001122]
[1743474519429,0.3028092,607.6,606.04,0.33001122]
[1743474519633,0.3028092,607.61,606.04,0.33001122]
[1743474519933,0.3028092,607.6,606.04,0.33001122]
[1743474520128,0.3028092,607.59,606.04,0.33001122]
[1743474520333,0.3028092,607.61,606.04,0.33001122]
[1743474520532,0.3028092,607.6,606.04,0.33001122]
[1743474520744,0.28679388,607.62,606.04,0.33001122]
[1743474520745,0.3028092,607.61,606.04,0.33001122]
[1743474521038,0.30280122,607.6,606.04,0.33001122]
[1743474521238,0.58965775,607.59,606.04,0.33001122]
[1743474521440,0.30280122,607.58,606.04,0.33001122]
[1743474522634,0.3028097,607.57,606.04,0.33001122]
[1743474522831,0.3028097,607.56,606.04,0.33001122]
[1743474523138,0.3028097,607.55,606.04,0.33001122]
[1743474523442,0.3028097,607.54,606.04,0.33001122]
[1743474523737,0.3028097,607.53,606.04,0.33001122]
[1743474523935,0.3028097,607.58,606.04,0.33001122]
[1743474524136,0.30282781,607.57,606.04,0.33001122]
[1743474524338,0.30282781,607.56,606.04,0.33001122]
[1743474524533,0.30282781,607.58,606.04,0.33001122]
[1743474524734,0.30282781,607.57,606.04,0.33001122]
[1743474524939,0.30282781,607.58,606.04,0.33001122]
[1743474525138,0.30282781,607.57,606.04,0.33001122]
[1743474525340,0.30282781,607.56,606.04,0.33001122]
[1743474525540,0.30282781,607.58,606.04,0.33001122]
[1743474525835,0.30282677,607.57,606.04,0.33001122]
[1743474526040,0.30282677,607.58,606.04,0.33001122]
[1743474526243,0.30282677,607.57,606.04,0.33001122]
[1743474526539,0.30282677,607.56,606.04,0.33001122]
[1743474526740,0.30282677,607.58,606.04,0.33001122]
[1743474526938,0.30282677,607.57,606.04,0.33001122]
[1743474527132,0.30282677,607.58,606.04,0.33001122]
[1743474527335,0.30282677,607.57,606.04,0.33001122]
[1743474527539,0.30282677,607.58,606.04,0.33001122]
[1743474527741,0.30282677,607.57,606.04,0.33001122]
[1743474527936,0.30282677,607.56,606.04,0.33001122]
[1743474528133,0.30282677,607.55,606.04,0.33001122]
[1743474528335,0.30282677,607.58,606.04,0.33001122]
[1743474528639,0.28685653,607.59,606.04,0.33001122]
[1743474528640,0.63200694,607.57,606.04,0.33001122]
[1743474528840,0.63201236,607.56,606.04,0.33001122]
[1743474529037,0.63201778,607.55,606.04,0.33001122]
[1743474529235,0.6320232,607.54,606.04,0.33001122]
[1743474529437,0.30282677,607.53,606.04,0.33001122]
[1743474530042,0.32920726,607.52,606.04,0.33001122]
[1743474530343,0.30282677,607.51,606.04,0.33001122]
[1743474530742,0.3292181,607.5,606.04,0.33001122]
[1743474530938,0.30282677,607.49,606.04,0.33001122]
[1743474531437,0.32922894,607.48,606.04,0.33001122]
[1743474531641,0.30282677,607.47,606.04,0.33001122]
[1743474531843,0.32923978,607.46,606.04,0.33001122]
[1743474532042,0.30290892,607.45,606.04,0.33001122]
[1743474532246,0.63215412,607.45,606.04,0.33001122]
[1743474532437,0.30290892,607.44,606.04,0.33001122]
[1743474533237,0.28696298,607.43,606.04,0.33001122]
[1743474533441,0.30290892,607.42,606.04,0.33001122]
[1743474535142,0.30290231,607.41,606.04,0.33001122]
[1743474535340,0.30290231,607.42,606.04,0.33001122]
[1743474535543,0.30290231,607.41,606.04,0.33001122]
[1743474535744,0.30290231,607.4,606.04,0.33001122]
[1743474535941,0.30290231,607.42,606.04,0.33001122]
[1743474536248,0.28697007,607.4,606.04,0.33001122]
[1743474536441,0.30290231,607.39,606.04,0.33001122]
[1743474536643,0.28697007,607.4,606.04,0.33001122]
[1743474536841,0.30290225,607.39,606.04,0.33001122]
[1743474538344,0.30290747,607.38,606.04,0.33001122]
[1743474538548,0.30290747,607.39,606.04,0.33001122]
[1743474538746,0.30290747,607.38,606.04,0.33001122]
[1743474538945,0.30290747,607.37,606.04,0.33001122]
[1743474539143,0.30290747,607.36,606.04,0.33001122]
[1743474539749,0.28698901,607.37,606.04,0.33001122]
[1743474539949,0.3029122,607.36,606.04,0.33001122]
[1743474540649,0.29182036,607.36,606.04,0.33001122]
[1743474541052,0.28698901,607.37,606.04,0.33001122]
[1743474541853,0.30292316,607.36,606.04,0.33001122]
[1743474542149,0.30292316,607.35,606.04,0.33001122]
[1743474542652,0.3029229,607.34,606.04,0.33001122]
[1743474542855,0.3029229,607.35,606.04,0.33001122]
[1743474543051,0.3029229,607.34,606.04,0.33001122]
[1743474543248,0.3029229,607.33,606.04,0.33001122]
[1743474543452,0.3029229,607.32,606.04,0.33001122]
[1743474543757,0.3029229,607.31,606.04,0.33001122]
[1743474544056,0.30292316,607.3,606.04,0.33001122]
[1743474544256,0.30292316,607.35,606.04,0.33001122]
[1743474544455,0.30292316,607.34,606.04,0.33001122]
[1743474544654,0.30292316,607.35,606.04,0.33001122]
[1743474544850,0.30292316,607.34,606.04,0.33001122]
[1743474545053,0.30292316,607.35,606.04,0.33001122]
[1743474545251,0.30292316,607.34,606.04,0.33001122]
[1743474545457,0.28695706,607.36,606.04,0.33001122]
[1743474545657,0.30292343,607.35,606.04,0.33001122]
[1743474548157,0.5898935,607.34,606.04,0.33001122]
[1743474548364,0.30292343,607.33,606.04,0.33001122]
[1743474549059,0.30292343,607.32,606.04,0.33001122]
[1743474549262,0.30292343,607.31,606.04,0.33001122]
[1743474549560,0.30292343,607.3,606.04,0.33001122]
[1743474549764,0.30292343,607.29,606.04,0.33001122]
[1743474550060,0.30292343,607.28,606.04,0.33001122]
[1743474550265,0.3029229,607.27,606.04,0.33001122]
[1743474550566,0.3029229,607.26,606.04,0.33001122]
[1743474550863,0.3029229,607.25,606.04,0.33001122]
[1743474551063,0.3029229,607.24,606.04,0.33001122]
[1743474551265,0.28696771,607.25,606.04,0.33001122]
[1743474551466,0.3029229,607.24,606.04,0.33001122]
[1743474551859,0.30292292,607.23,606.04,0.33001122]
[1743474552059,0.30292292,607.22,606.04,0.33001122]
[1743474552259,0.30292292,607.21,606.04,0.33001122]
[1743474552464,0.30292292,607.24,606.04,0.33001122]
[1743474552660,0.30292292,607.23,606.04,0.33001122]
[1743474552863,0.28696771,607.25,606.04,0.33001122]
[1743474552864,0.30292292,607.24,606.04,0.33001122]
[1743474553163,0.30292292,607.23,606.04,0.33001122]
[1743474553366,0.30292292,607.22,606.04,0.33001122]
[1743474553568,0.30292292,607.21,606.04,0.33001122]
[1743474553766,0.30292292,607.24,606.04,0.33001122]
[1743474554063,0.30292292,607.23,606.04,0.33001122]
[1743474554261,0.30292292,607.22,606.04,0.33001122]
[1743474557163,0.3292452,607.45,606.04,0.33001122]
[1743474557164,0.58990719,607.21,606.04,0.33001122]
[1743474557363,0.30292292,607.2,606.04,0.33001122]
[1743474558971,0.28698427,607.21,606.04,0.33001122]
[1743474559170,0.30290991,607.2,606.04,0.33001122]
[1743474559367,0.28698427,607.21,606.04,0.33001122]
[1743474559967,0.3292452,607.45,606.04,0.33001122]
[1743474560170,0.28694878,607.2,606.04,0.33001122]
[1743474560570,0.3292452,607.45,606.04,0.33001122]
[1743474560766,0.28694996,607.19,606.04,0.33001122]
[1743474561168,0.3292452,607.45,606.04,0.33001122]
[1743474561366,0.28694286,607.18,606.04,0.33001122]
[1743474561766,0.3292452,607.45,606.04,0.33001122]
[1743474562068,0.28694286,607.17,606.04,0.33001122]
[1743474562269,0.3292452,607.45,606.04,0.33001122]
[1743474562472,0.30290721,607.44,606.04,0.33001122]
[1743474562671,0.28694405,607.16,606.04,0.33001122]
[1743474562872,0.32925062,607.44,606.04,0.33001122]
[1743474563071,0.30290684,607.43,606.04,0.33001122]
[1743474563267,0.28694286,607.15,606.04,0.33001122]
[1743474563473,0.32925062,607.44,606.04,0.33001122]
[1743474563774,0.28692039,607.14,606.04,0.33001122]
[1743474564073,0.32925062,607.44,606.04,0.33001122]
[1743474564267,0.3028666,607.43,606.04,0.33001122]
[1743474564473,0.28691921,607.13,606.04,0.33001122]
[1743474564671,0.32925062,607.44,606.04,0.33001122]
[1743474564971,0.28692039,607.12,606.04,0.33001122]
[1743474565372,0.32925062,607.44,606.04,0.33001122]
[1743474565574,0.28692394,607.11,606.04,0.33001122]
[1743474565872,0.32925062,607.44,606.04,0.33001122]
[1743474566075,0.30287393,607.43,606.04,0.33001122]
[1743474566374,0.28692512,607.1,606.04,0.33001122]
[1743474566576,0.32925062,607.44,606.04,0.33001122]
[1743474566774,0.28692512,607.42,606.04,0.33001122]
[1743474566968,0.3028754,607.41,606.04,0.33001122]
[1743474569074,0.3028754,607.43,606.04,0.33001122]
[1743474569269,0.2869263,607.4,606.04,0.33001122]
[1743474569473,0.3028754,607.39,606.04,0.33001122]
[1743474572182,0.58978987,607.38,606.04,0.33001122]
[1743474572476,0.3028754,607.37,606.04,0.33001122]
[1743474575079,0.3028754,607.43,606.04,0.33001122]
[1743474575286,0.32925062,607.44,606.04,0.33001122]
[1743474575287,0.28687663,607.36,606.04,0.33001122]
[1743474575482,0.30285635,607.35,606.04,0.33001122]
[1743474576984,0.28687663,607.36,606.04,0.33001122]
[1743474577184,0.30285978,607.35,606.04,0.33001122]
[1743474578089,0.30285978,607.34,606.04,0.33001122]
[1743474578389,0.30285978,607.33,606.04,0.33001122]
[1743474578589,0.286879,607.34,606.04,0.33001122]
[1743474578788,0.30285649,607.33,606.04,0.33001122]
[1743474581185,0.58974495,607.32,606.04,0.33001122]
[1743474581385,0.30285649,607.31,606.04,0.33001122]
[1743474581891,0.30285606,607.3,606.04,0.33001122]
[1743474582090,0.30285606,607.31,606.04,0.33001122]
[1743474582291,0.28688846,607.32,606.04,0.33001122]
[1743474582490,0.30285619,607.31,606.04,0.33001122]
[1743474584090,0.30285619,607.3,606.04,0.33001122]
[1743474584293,0.28688727,607.3,606.04,0.33001122]
[1743474584587,0.30285619,607.29,606.04,0.33001122]
[1743474585691,0.28688727,607.3,606.04,0.33001122]
[1743474586091,0.30285931,607.29,606.04,0.33001122]
[1743474586692,0.28688727,607.3,606.04,0.33001122]
[1743474586890,0.30285958,607.29,606.04,0.33001122]
[1743474587894,0.28688727,607.3,606.04,0.33001122]
[1743474589797,0.32925062,607.44,606.04,0.33001122]
[1743474590004,0.30284707,607.43,606.04,0.33001122]
[1743474590296,0.58966814,607.43,606.04,0.33001122]
[1743474590496,0.30284707,607.42,606.04,0.33001122]
[1743474593194,0.58974026,607.41,606.04,0.33001122]
[1743474593399,0.30284707,607.4,606.04,0.33001122]
[1743474596095,0.58973553,607.39,606.04,0.33001122]
[1743474596301,0.28688846,607.39,606.04,0.33001122]
[1743474597101,0.30285266,607.38,606.04,0.33001122]
[1743474598004,0.30287007,607.37,606.04,0.33001122]
[1743474598303,0.30287007,607.36,606.04,0.33001122]
[1743474598503,0.30287007,607.38,606.04,0.33001122]
[1743474598803,0.30287007,607.37,606.04,0.33001122]
[1743474599004,0.30287007,607.43,606.04,0.33001122]
[1743474599205,0.2868991,607.37,606.04,0.33001122]
[1743474599405,0.30287007,607.36,606.04,0.33001122]
[1743474601607,0.30287007,607.43,606.04,0.33001122]
[1743474601808,0.28691447,607.35,606.04,0.33001122]
[1743474602110,0.30287007,607.34,606.04,0.33001122]
[1743474602306,0.28690856,607.34,606.04,0.33001122]
[1743474602508,0.30287007,607.33,606.04,0.33001122]
[1743474605014,0.30287007,607.32,606.04,0.33001122]
[1743474605212,0.30287007,607.31,606.04,0.33001122]
[1743474608116,0.28689792,607.3,606.04,0.33001122]
[1743474608410,0.30287007,607.29,606.04,0.33001122]
[1743474610817,0.28689792,607.3,606.04,0.33001122]
[1743474611512,0.30286616,607.29,606.04,0.33001122]
[1743474611716,0.28689792,607.3,606.04,0.33001122]
[1743474611915,0.30291146,607.29,606.04,0.33001122]
[1743474613913,0.30292902,607.28,606.04,0.33001122]
[1743474614119,0.30292902,607.27,606.04,0.33001122]
[1743474614418,0.30292902,607.26,606.04,0.33001122]
[1743474614616,0.30292902,607.25,606.04,0.33001122]
[1743474614814,0.30292902,607.27,606.04,0.33001122]
[1743474615017,0.30292902,607.26,606.04,0.33001122]
[1743474615218,0.30292902,607.27,606.04,0.33001122]
[1743474615412,0.30292902,607.26,606.04,0.33001122]
[1743474615616,0.30292902,607.27,606.04,0.33001122]
[1743474615816,0.30292902,607.26,606.04,0.33001122]
[1743474616021,0.30292902,607.27,606.04,0.33001122]
[1743474616330,0.30292902,607.26,606.04,0.33001122]
[1743474616516,0.30292902,607.27,606.04,0.33001122]
[1743474618224,0.30296488,607.26,606.04,0.33001122]
[1743474618424,0.30296488,607.25,606.04,0.33001122]
[1743474618624,0.30296488,607.24,606.04,0.33001122]
[1743474618824,0.30296488,607.27,606.04,0.33001122]
[1743474619021,0.30296488,607.26,606.04,0.33001122]
[1743474619221,0.30301623,607.25,606.04,0.33001122]
[1743474619422,0.30301623,607.24,606.04,0.33001122]
[1743474619623,0.30301623,607.23,606.04,0.33001122]
[1743474619819,0.32925062,607.44,606.04,0.33001122]
[1743474620020,0.30302058,607.43,606.04,0.33001122]
[1743474620226,0.28701504,607.22,606.04,0.33001122]
[1743474620428,0.30302058,607.21,606.04,0.33001122]
[1743474620825,0.28700084,607.21,606.04,0.33001122]
[1743474621022,0.30302058,607.2,606.04,0.33001122]
[1743474623025,0.30302058,607.34,606.04,0.33001122]
[1743474623328,0.28702215,607.19,606.04,0.33001122]
[1743474623530,0.30302058,607.18,606.04,0.33001122]
[1743474623723,0.30302058,607.17,606.04,0.33001122]
[1743474626024,0.30302058,607.32,606.04,0.33001122]
[1743474626225,0.2870328,607.16,606.04,0.33001122]
[1743474626426,0.3030293,607.15,606.04,0.33001122]
[1743474626629,0.3030293,607.14,606.04,0.33001122]
[1743474626925,0.3030293,607.13,606.04,0.33001122]
[1743474627130,0.3030293,607.14,606.04,0.33001122]
[1743474627326,0.3030293,607.13,606.04,0.33001122]
[1743474627526,0.3030293,607.14,606.04,0.33001122]
[1743474627729,0.3030293,607.13,606.04,0.33001122]
[1743474628231,0.3030293,607.12,606.04,0.33001122]
[1743474628531,0.3030293,607.11,606.04,0.33001122]
[1743474628932,0.3030293,607.1,606.04,0.33001122]
[1743474629127,0.2870695,607.1,606.04,0.33001122]
[1743474629431,0.3030293,607.09,606.04,0.33001122]
[1743474629625,0.30302957,607.08,606.04,0.33001122]
[1743474629829,0.30302957,607.09,606.04,0.33001122]
[1743474630027,0.30302957,607.08,606.04,0.33001122]
[1743474630229,0.30302957,607.09,606.04,0.33001122]
[1743474632128,0.28707305,607.08,606.04,0.33001122]
[1743474632328,0.30302957,607.07,606.04,0.33001122]
[1743474632732,0.28707305,607.08,606.04,0.33001122]
[1743474633634,0.30305492,607.07,606.04,0.33001122]
[1743474635230,0.59013863,607.06,606.04,0.33001122]
[1743474635434,0.30305492,607.05,606.04,0.33001122]
[1743474638138,0.59013508,607.04,606.04,0.33001122]
[1743474638336,0.30305492,607.03,606.04,0.33001122]
[1743474639337,0.30306065,607.02,606.04,0.33001122]
[1743474639538,0.30306065,607.01,606.04,0.33001122]
[1743474639738,0.30306065,607.03,606.04,0.33001122]
[1743474639935,0.30306065,607.02,606.04,0.33001122]
[1743474640133,0.30306065,607.03,606.04,0.33001122]
[1743474640334,0.30306065,607.02,606.04,0.33001122]
[1743474640536,0.30306065,607.03,606.04,0.33001122]
[1743474641040,0.30306065,607.3,606.04,0.33001122]
[1743474641343,0.28709673,607.02,606.04,0.33001122]
[1743474641543,0.30306065,607.01,606.04,0.33001122]
[1743474641741,0.28706595,607.01,606.04,0.33001122]
[1743474641942,0.30306065,607.0,606.04,0.33001122]
[1743474644137,0.30306093,606.99,606.04,0.33001122]
[1743474644338,0.28708016,606.99,606.04,0.33001122]
[1743474644552,0.30311187,606.98,606.04,0.33001122]
[1743474645740,0.28708016,606.99,606.04,0.33001122]
[1743474645944,0.30317617,606.98,604.58,2.64973104]
[1743474646141,0.30317617,606.98,604.7,0.33074251]
[1743474646338,0.32950557,606.97,604.7,0.33074251]
[1743474646545,0.30317617,606.96,604.7,0.33074251]
[1743474647345,0.32951643,606.95,604.7,0.33074251]
[1743474647543,0.30317617,606.94,604.7,0.33074251]
[1743474650249,0.28721402,606.93,604.7,0.33074251]
[1743474650442,0.30317617,606.92,604.7,0.33074251]
[1743474653245,0.59034753,606.91,604.7,0.33074251]
[1743474653449,0.30317617,606.9,604.7,0.33074251]
[1743474656154,0.59041272,606.89,604.7,0.33074251]
[1743474656354,0.30317617,606.88,604.7,0.33074251]
[1743474659154,0.59033924,606.87,604.7,0.33074251]
[1743474659360,0.30317617,606.86,604.7,0.33074251]
[1743474662060,0.30317617,606.94,604.7,0.33074251]
[1743474662261,0.28717136,606.85,604.7,0.33074251]
[1743474662555,0.30317617,606.84,604.7,0.33074251]
[1743474662756,0.28717966,606.84,604.7,0.33074251]
[1743474663059,0.30317617,606.83,604.7,0.33074251]
[1743474665063,0.30317617,606.94,604.7,0.33074251]
[1743474665264,0.28720217,606.82,604.7,0.33074251]
[1743474665566,0.30317617,606.81,604.7,0.33074251]
[1743474665766,0.28719032,606.81,604.7,0.33074251]
[1743474665959,0.30317617,606.8,604.7,0.33074251]
[1743474668281,0.59038545,606.79,604.7,0.33074251]
[1743474668575,0.30317617,606.78,604.7,0.33074251]
[1743474671179,0.5903499,606.77,604.7,0.33074251]
[1743474671378,0.30317617,606.76,604.7,0.33074251]
[1743474674185,0.2871844,606.75,604.7,0.33074251]
[1743474674584,0.30317617,606.74,604.7,0.33074251]
[1743474676687,0.30317617,606.74,604.82,2.49849548]
[1743474676886,0.30317617,606.74,604.84,0.33066596]
[1743474677188,0.30317617,606.73,604.84,0.33066596]
[1743474677484,0.28714293,606.73,604.84,0.33066596]